[Event "44th Chess Olympiad Open 2022"]
[Site "Chennai"]
[Date "2022.07.30"]
[Round "2.3"]
[White "Hoffman, Alejandro"]
[Black "Tari, Aryan"]
[Result "0-1"]
[WhiteElo "2390"]
[BlackElo "2672"]
[Annotator "TA"]
[PlyCount "72"]
[EventDate "2022.??.??"]
[TimeControl "60"]

{[%evp 9,72,0,0,0,0,6,0,0,0,0,0,0,6,14,6,0,0,0,4,-17,0,-12,-4,-14,-3,-14,0,0,0,
0,0,0,14,2,37,0,14,0,13,25,6,12,21,0,31,39,29,0,0,-81,-95,-131,-143,-152,-154,
-239,-200,-446,-440,-434,-362,-420,-385,-346,-343]} 1. d4 {[%emt 0:00:05]} Nf6
{[%emt 0:01:25]} 2. c4 {[%emt 0:00:27]} e6 {[%emt 0:00:18]} 3. Nf3 {[%emt 0:00:
00]} d5 {[%emt 0:00:22]} 4. e3 {[%emt 0:00:40]} Be7 {[%emt 0:01:02]} 5. Nbd2 {
[%emt 0:05:12]} O-O {[%emt 0:01:45]} 6. b3 {[%emt 0:01:25] D30: Queen's Gambit
Declined: Systems without Nc3.} c5 {[%emt 0:07:00]} 7. Bb2 {[%emt 0:01:34]}
cxd4 {[%emt 0:05:26]} 8. exd4 {[%emt 0:00:26] The position is equal.} b6 {
[%emt 0:04:43]} 9. Bd3 {[%emt 0:00:54]} Nc6 {[%emt 0:00:52]} 10. O-O {[%emt 0:
00:00]} Nb4 {[%emt 0:01:23]} 11. Bb1 {[%emt 0:01:05]} Bb7 {[%emt 0:01:19]} 12.
Re1 {[%emt 0:17:19]} Rc8 {[%emt 0:03:54]} 13. a3 $1 {[%emt 0:11:39]} Nc6 {
[%emt 0:01:00][%cal Yb4c6,Yc6e7,Ye7g6] [#]} 14. Ba2 $146 {[%emt 0:00:00]} ({
Predecessor:} 14. Bd3 Re8 15. Rc1 Bf8 16. Qe2 g6 17. Qe3 Bg7 18. h3 Ne7 19.
Red1 Nf5 20. Qe1 Nh5 21. Bf1 dxc4 22. bxc4 Nxd4 23. Nxd4 Bxd4 {0-1 (41)
Marjanovic,D (2389)-Saric,A (2542) Tuzla 2019}) 14... Re8 {[%emt 0:06:15]} 15.
Nf1 {[%emt 0:11:04]} Bf8 {[%emt 0:08:09]} 16. Ne3 {[%emt 0:03:04]} Ne7 {
[%emt 0:01:45]} 17. Rc1 {[%emt 0:05:35]} Ng6 {[%emt 0:02:11]} 18. g3 {[%emt 0:
00:00]} Rc7 {[%emt 0:03:14]} 19. h4 {[%emt 0:02:42]} Qa8 {[%emt 0:03:42]} 20.
Nh2 {[%emt 0:02:03]} h5 {[%emt 0:15:23]} 21. Bb1 {[%emt 0:04:10]} Rec8 {
[%emt 0:05:51]} 22. Bd3 {[%emt 0:05:51]} Ne7 {[%emt 0:03:56]} 23. c5 {[%emt 0:
00:00]} g6 $1 {[%emt 0:03:45]} 24. b4 {[%emt 0:00:33] Hoping for b5.} Bg7 {
[%emt 0:00:40]} 25. Nf3 {[%emt 0:03:16]} Ne4 {[%emt 0:00:21][%cal Rb6c5]} 26.
Qe2 {[%emt 0:02:24]} Nf5 {[%emt 0:05:58]} 27. Nxf5 {[%emt 0:01:22]} exf5 {
[%emt 0:00:01]} 28. Ne5 {[%emt 0:03:28]} Re7 {[%emt 0:03:00]} 29. c6 {[%emt 0:
00:00]} (29. Kh2 $11) 29... Bxc6 $17 {[%emt 0:00:24]} 30. Nxc6 {[%emt 0:00:00]}
Rxc6 {[%emt 0:00:09]} 31. Rxc6 {[%emt 0:00:00]} Qxc6 {[%emt 0:00:06]} 32. f3 {
[%emt 0:00:17]} (32. Kg2 $17 {might work better.} Qd6 33. Qe3) 32... Qd6 {
[%emt 0:01:17]} 33. fxe4 $2 {[%emt 0:00:32] [#]} (33. f4) 33... Qxg3+ $19 {
[%emt 0:00:02]} 34. Kh1 {[%emt 0:00:23]} fxe4 {[%emt 0:00:39][%cal Yf5e4,Ye4e3]
} 35. Bb5 {[%emt 0:00:14]} Qxh4+ {[%emt 0:00:33]} 36. Kg2 {[%emt 0:00:00]} e3 {
[%emt 0:02:17] Inhibits Qf2. Weighted Error Value: White=0.22 (precise) /
Black=0.08 (flawless)} 0-1

[Event "44th Chess Olympiad Open 2022"]
[Site "Chennai"]
[Date "2022.07.30"]
[Round "2.4"]
[White "Vallejo Pons, Francisco"]
[Black "Docx, Stefan"]
[Result "1-0"]
[WhiteElo "2702"]
[BlackElo "2434"]
[Annotator "TA"]
[PlyCount "77"]
[EventDate "2022.??.??"]
[TimeControl "60"]

{[%evp 21,77,20,21,0,0,0,0,0,30,47,41,36,80,77,101,94,135,134,156,177,192,187,
185,152,182,189,236,211,254,255,379,372,380,364,360,364,1206,1185,1047,437,397,
352,531,427,430,418,428,364,596,572,537,527,711,673,764,706,657,634]} 1. e4 {
[%emt 0:00:29]} c5 {[%emt 0:00:39]} 2. Nf3 {[%emt 0:00:06]} d6 {[%emt 0:00:32]}
3. d4 {[%emt 0:00:09]} cxd4 {[%emt 0:00:10]} 4. Nxd4 {[%emt 0:00:04]} Nf6 {
[%emt 0:00:11]} 5. Nc3 {[%emt 0:00:05]} g6 {[%emt 0:02:29]} 6. Be3 {[%emt 0:00:
00]} Bg7 {[%emt 0:00:27]} 7. Qd2 {[%emt 0:01:17]} O-O {[%emt 0:00:13]} 8. Be2 {
[%emt 0:13:05]} Nc6 {[%emt 0:01:14]} 9. O-O-O {[%emt 0:01:51]} Ng4 {[%emt 0:00:
00]} 10. Bxg4 {[%emt 0:04:06]} Bxg4 {[%emt 0:01:40]} 11. f3 {[%emt 0:00:18]}
Be6 {[%emt 0:00:48]} 12. Nd5 $5 {[%emt 0:42:12] Exploring less charted
territory. B72: Sicilian Dragon: 6 Be3, lines with h3+Bc4 and sidelines.} Rc8 {
[%emt 0:23:40]} 13. h4 {[%emt 0:00:00][%cal Yh2h4,Yh4h5] [#]} Bxd5 $146 {
[%emt 0:15:23]} ({Predecessor:} 13... Ne5 14. b3 Bxd5 15. exd5 Qc7 16. Nb5 Qd7
17. Nd4 Rfe8 18. h5 Rc5 19. hxg6 hxg6 {0-1 (28) Kalra,A (1987)-Pacey,K (2235)
Ottawa 2012}) 14. exd5 {[%emt 0:00:00] The position is equal.} Nxd4 {[%emt 0:
00:16]} (14... Ne5 $5 {[%cal Re5c4]}) 15. Bxd4 {[%emt 0:00:00]} Bxd4 {[%emt 0:
00:10]} 16. Qxd4 {[%emt 0:08:36]} Qa5 {[%emt 0:10:03]} 17. Kb1 {[%emt 0:00:00]}
b5 {[%emt 0:02:59]} 18. h5 {[%emt 0:10:12]} Qc7 {[%emt 0:05:35]} 19. Qd2 {
[%emt 0:00:00]} a5 {[%emt 0:07:24]} 20. Rh4 {[%emt 0:00:00][%cal Yh1h4,Yh4e4,
Ye4e7]} b4 {[%emt 0:07:57] [#]} 21. Rdh1 $1 {[%emt 0:00:00] aiming for hxg6.}
g5 {[%emt 0:00:36]} 22. Qxg5+ $40 {[%emt 0:00:00] White wants a kill.} Kh8 {
[%emt 0:00:08]} 23. Qd2 {[%emt 0:00:00] Active counter play!} Rg8 {[%emt 0:01:
56]} (23... Qb7 $142 24. Rg4 Rg8) 24. Re4 $18 {[%emt 0:00:00]} f6 {[%emt 0:06:
10]} 25. Rhe1 {[%emt 0:01:05]} Rg5 {[%emt 0:00:00]} (25... Rce8 {was worth a
try.} 26. Re6 Qd7) 26. Rxe7 {[%emt 0:02:30]} Qc4 {[%emt 0:02:16]} 27. h6 {
[%emt 0:04:33][%cal Yd2g5] Strongly threatening Qxg5!} Rcg8 {[%emt 0:01:22]}
28. b3 {[%emt 0:01:25]} Rxd5 $2 {[%emt 0:01:56]} (28... Qxd5 29. Qxd5 Rxd5) 29.
Qe3 {[%emt 0:03:41]} Qh4 {[%emt 0:00:53]} 30. g4 {[%emt 0:01:01]} (30. f4 $142)
30... Re5 {[%emt 0:01:35]} 31. Qd2 {[%emt 0:00:00]} Rc8 {[%emt 0:01:08]} (31...
Qg5 $142 32. Qxd6 Rxe1+ 33. Rxe1 Qxh6) 32. R7xe5 {[%emt 0:00:52]} dxe5 {
[%emt 0:00:42] Endgame KQR-KQR} 33. Rd1 {[%emt 0:00:13][%cal Yd2d8] Qd8+!
would kill now.} Rg8 {[%emt 0:00:21] Against Qd8} 34. Qe3 {[%emt 0:00:47]} Rc8
$2 {[%emt 0:00:38] [#]} (34... e4 35. Qxe4 Qxh6) 35. Qc5 $3 {[%emt 0:01:09]
[%cal Rc5c8] White is clearly winning.} Rg8 {[%emt 0:00:21]} 36. Qxa5 {[%emt 0:
00:14]} Qxh6 {[%emt 0:00:15]} 37. Qxb4 {[%emt 0:00:09]} Qe3 {[%emt 0:00:47]}
38. Rd3 {[%emt 0:00:38]} Qg1+ {[%emt 0:00:39]} 39. Kb2 {[%emt 0:00:02] Black
got outplayed after the opening. Weighted Error Value: White=0.29 (precise) /
Black=0.43} 1-0

[Event "44th Chess Olympiad Open 2022"]
[Site "Chennai"]
[Date "2022.07.30"]
[Round "2.4"]
[White "Iturrizaga Bonelli, Eduardo"]
[Black "Lenaerts, Lennert"]
[Result "1-0"]
[WhiteElo "2619"]
[BlackElo "2379"]
[Annotator "TA"]
[PlyCount "73"]
[EventDate "2022.??.??"]
[TimeControl "60"]

{[%evp 9,73,11,14,8,26,13,25,20,23,28,28,26,27,26,15,9,14,9,21,22,23,16,24,17,
23,25,71,0,0,0,9,0,47,52,72,72,125,116,118,130,136,147,145,131,131,135,125,106,
109,102,108,113,102,63,61,14,100,92,212,214,212,209,210,217,685,663]} 1. Nf3 {
[%emt 0:00:03]} d5 {[%emt 0:00:18]} 2. e3 {[%emt 0:00:05]} Nf6 {[%emt 0:01:58]}
3. c4 {[%emt 0:00:17]} e6 {[%emt 0:00:32]} 4. Nc3 {[%emt 0:00:09]} a6 {[%emt 0:
00:00]} 5. b3 {[%emt 0:01:35]} Bd6 {[%emt 0:01:39]} 6. Bb2 {[%emt 0:00:18] A17:
English Opening: 1...Nf6 with ...Bb4.} b6 {[%emt 0:05:09]} 7. g3 {[%emt 0:00:
00]} Bb7 {[%emt 0:02:39]} 8. cxd5 {[%emt 0:00:56] White has an edge.} exd5 {
[%emt 0:00:17][%cal Yd5d4]} 9. Bg2 {[%emt 0:00:04]} O-O {[%emt 0:04:51]} 10.
O-O {[%emt 0:00:51]} Nbd7 {[%emt 0:04:40]} 11. Rc1 {[%emt 0:02:59]} Rc8 {
[%emt 0:02:11]} 12. d4 {[%emt 0:04:04]} Re8 {[%emt 0:03:57] [#]} 13. Bh3 $146 {
[%emt 0:08:35]} ({Predecessor:} 13. Ne2 a5 14. Qc2 Ba6 15. Rfd1 c6 16. Nf4 Ne4
17. Ne5 Nxe5 18. dxe5 Bxe5 19. Bxe4 Bxb2 20. Bxh7+ {½-½ (99) Aronian,L (2782)
-Le,Q (2709) chess24.com INT 2021}) 13... c5 {[%emt 0:05:38]} 14. dxc5 {
[%emt 0:09:45]} bxc5 {[%emt 0:02:03]} 15. Nh4 {[%emt 0:00:05]} Rc7 {[%emt 0:00:
00]} 16. Bg2 {[%emt 0:02:26]} Nb6 {[%emt 0:01:51]} 17. a4 {[%emt 0:00:11]} Qa8
{[%emt 0:05:56] [#]} (17... Bf8 $11 {is superior.}) 18. a5 {[%emt 0:07:08]} (
18. Nxd5 $1 $16 Nfxd5 19. e4) 18... Nbd7 $11 {[%emt 0:00:58]} 19. Na4 {[%emt 0:
00:00]} Qd8 {[%emt 0:14:51]} 20. Rc2 {[%emt 0:16:14]} Bc6 {[%emt 0:08:03]} (
20... Be7 $11) 21. Qa1 $14 {[%emt 0:10:13]} Bb5 {[%emt 0:03:54]} 22. Rd1 {
[%emt 0:01:25]} Be5 {[%emt 0:00:26] [#]} (22... d4 $142) 23. Bxe5 $1 $16 {
[%emt 0:05:01]} Nxe5 {[%emt 0:00:02]} 24. Rxc5 {[%emt 0:00:33]} Rxc5 {[%emt 0:
00:00]} 25. Nxc5 {[%emt 0:00:05]} Nc6 {[%emt 0:00:07]} 26. Nf5 {[%emt 0:14:02]}
Qxa5 {[%emt 0:01:58]} 27. Qxa5 {[%emt 0:02:07]} Nxa5 {[%emt 0:00:02]} 28. Ra1 {
[%emt 0:01:09] White is more active.} Nc6 {[%emt 0:00:45]} 29. Nd6 $36 {
[%emt 0:00:05] White has strong initiative.} ({Worse is} 29. Nxa6 Ra8 30. Bf1
Bxf1 31. Kxf1 Nb8 $17) 29... Rd8 {[%emt 0:04:10]} 30. Nxb5 {[%emt 0:00:05]}
axb5 {[%emt 0:00:02]} 31. Ra6 {[%emt 0:00:05]} Ne5 {[%emt 0:00:00]} 32. Rb6 {
[%emt 0:00:40]} (32. Ra5 $14 {might be stronger.}) 32... h5 {[%emt 0:00:08]} (
32... Ra8 $11) 33. Rxb5 {[%emt 0:00:19]} d4 {[%emt 0:01:29]} (33... Ra8 $16)
34. Nb7 $18 {[%emt 0:00:55][%csl Yd8,Ye5]} d3 {[%emt 0:00:27] ...d2 is the
strong threat.} 35. Rxe5 {[%emt 0:00:11]} (35. Nxd8 $2 {loses.} d2 36. Rxe5
d1=Q+ 37. Bf1 Qxd8 $19) 35... d2 {[%emt 0:00:02]} 36. Bf3 {[%emt 0:00:00]} Ng4
$2 {[%emt 0:00:41]} (36... d1=Q+ 37. Bxd1 Rxd1+ 38. Kg2 g6) 37. Nxd8 {[%emt 0:
00:12] Weighted Error Value: White=0.07 (flawless) /Black=0.32} 1-0

[Event "44th Chess Olympiad Open 2022"]
[Site "Chennai"]
[Date "2022.07.30"]
[Round "2.4"]
[White "Dardha, Daniel"]
[Black "Shirov, Alexei"]
[Result "0-1"]
[WhiteElo "2575"]
[BlackElo "2704"]
[Annotator "TA"]
[PlyCount "104"]
[EventDate "2022.??.??"]
[TimeControl "60"]

{[%evp 10,104,32,15,29,24,37,28,28,15,21,0,0,1,16,24,23,18,62,51,81,84,74,6,23,
18,21,21,2,0,18,0,0,0,0,0,-8,0,-1,-4,-5,-5,-15,-74,-54,-142,-149,-193,-214,
-218,-162,-162,-181,-173,-181,-199,-192,-184,-182,-195,-167,-372,-377,-375,
-354,-460,-394,-410,-432,-436,-407,-401,-366,-503,-506,-497,-503,-494,-457,
-479,-464,-452,-437,-432,-427,-510,-495,-478,-485,-652,-640,-633,-612,-553,
-504,-864,-806]} 1. e4 {[%emt 0:00:12]} c5 {[%emt 0:00:37]} 2. Nf3 {[%emt 0:00:
00]} d6 {[%emt 0:00:09]} 3. Bb5+ {[%emt 0:02:34]} Bd7 {[%emt 0:00:13]} 4. Bxd7+
{[%emt 0:01:18]} Qxd7 {[%emt 0:00:27]} 5. c4 {[%emt 0:02:13]} Nf6 {[%emt 0:00:
00]} 6. Nc3 {[%emt 0:00:18]} g6 {[%emt 0:00:51] B52: Sicilian: Moscow
Variation with 3...Bd7.} 7. d4 {[%emt 0:01:21]} cxd4 {[%emt 0:00:05]} 8. Nxd4 {
[%emt 0:00:05]} Bg7 {[%emt 0:09:44] White has an edge.} 9. h3 {[%emt 0:10:37]}
Qc7 {[%emt 0:31:27]} 10. Qe2 {[%emt 0:22:41]} Nc6 {[%emt 0:04:33]} 11. Nc2 {
[%emt 0:21:25] [#]} Ne5 $1 $146 {[%emt 0:05:12] A top novelty.} ({Predecessor:
} 11... O-O 12. O-O a6 13. b3 Rac8 14. Bb2 e6 15. Rad1 Rfd8 16. Ne3 Qa5 17.
Rfe1 Rb8 {½-½ (17) Tiviakov,S (2606)-Shariyazdanov,A (2523) Cheliabinsk 2021}
) 12. b3 {[%emt 0:00:00]} a6 {[%emt 0:00:00][%cal Yb7b5]} 13. Bb2 {[%emt 0:00:
00]} Nh5 {[%emt 0:00:00]} 14. Nd5 {[%emt 0:02:09] Against Nf4} Qa5+ {[%emt 0:
00:00]} 15. Bc3 {[%emt 0:01:32]} Qd8 {[%emt 0:00:00]} 16. g4 {[%emt 0:12:23]} (
16. Qe3 $16) 16... e6 $11 {[%emt 0:02:23]} 17. gxh5 {[%emt 0:00:00][%cal Yh5h6]
h6! is the strong threat.} exd5 {[%emt 0:00:00]} 18. exd5 {[%emt 0:00:33]} O-O
{[%emt 0:00:00][%cal Ye5c4]} 19. O-O-O {[%emt 0:00:47]} Rc8 {[%emt 0:05:19]
[%cal Ye5c4]} 20. Qd2 {[%emt 0:03:31]} Qh4 {[%emt 0:04:53]} 21. Qd4 {[%emt 0:
05:16]} Qxh5 {[%emt 0:01:57]} 22. f4 {[%emt 0:00:00]} Qh6 {[%emt 0:01:32][%cal
Ye5c4] And now ...Nxc4! would win.} 23. Kb1 {[%emt 0:02:02]} Nd7 {[%emt 0:00:
36]} 24. Qxg7+ {[%emt 0:00:07]} Qxg7 {[%emt 0:00:03]} 25. Bxg7 {[%emt 0:00:06]}
Kxg7 {[%emt 0:00:05]} 26. Kb2 {[%emt 0:01:02]} (26. Rhg1 $11) 26... Rfe8 $17 {
[%emt 0:01:23]} 27. Rde1 {[%emt 0:01:07] [#] White is now going downhill.} (27.
Rhe1 $15) 27... Nc5 $1 {[%emt 0:00:11]} 28. Kc3 {[%emt 0:00:00] Inhibits Nd3.}
Ne4+ {[%emt 0:00:10]} 29. Kb4 {[%emt 0:00:48]} Nf2 {[%emt 0:10:27]} 30. Rxe8 {
[%emt 0:00:08]} Rxe8 $19 {[%emt 0:00:03] Endgame KRN-KRN} 31. Rf1 {[%emt 0:01:
14] [#]} Re2 {[%emt 0:00:09]} ({Worse is} 31... Nxh3 32. Ka5 $17) 32. Kc3 {
[%emt 0:01:19]} f5 {[%emt 0:06:11]} (32... Nxh3 33. Kd3 Rh2 34. a4) 33. Nd4 {
[%emt 0:04:43]} Rxa2 {[%emt 0:03:41]} 34. Ne6+ {[%emt 0:00:00]} Kf6 {[%emt 0:
00:13]} 35. b4 $2 {[%emt 0:01:27]} (35. Kb4 {is a better defense.}) 35... Ne4+
{[%emt 0:00:20]} 36. Kb3 {[%emt 0:00:00]} Rh2 {[%emt 0:00:11] Hoping for ...
Nd2+.} 37. Ka4 {[%emt 0:01:10]} Rxh3 {[%emt 0:00:48] aiming for ...Nd2.} 38.
Ng5 {[%emt 0:00:09]} Rc3 {[%emt 0:02:13]} ({Don't go for} 38... Nxg5 $2 39.
fxg5+ Kxg5 40. Rc1 $19) 39. Nxh7+ {[%emt 0:00:00]} Kg7 {[%emt 0:01:04]} 40. Ng5
{[%emt 0:00:09]} Nd2 {[%emt 0:02:09]} 41. Rh1 {[%emt 0:05:00]} Nxc4 {[%emt 0:
00:14][%csl Gc4][%cal Rc3a3] Black is clearly winning.} ({Weaker is} 41... Rxc4
42. Rh7+ Kf8 43. Ne6+ Ke8 44. Nc7+ Kf8 45. Ne6+ Ke8 46. Nc7+ Kf8 47. Ne6+ $11)
42. b5 {[%emt 0:00:43] Threatens to win with Kb4.} Nb6+ {[%emt 0:00:26]} 43.
Ka5 {[%emt 0:00:11] Black must now prevent Rh7+.} Nxd5 {[%emt 0:00:17][%cal
Rc3a3]} 44. Rh7+ {[%emt 0:00:19]} Kg8 {[%emt 0:00:08][%cal Rc3a3]} 45. bxa6 {
[%emt 0:00:07]} Rc5+ {[%emt 0:01:07]} 46. Ka4 {[%emt 0:00:05]} bxa6 {[%emt 0:
00:17]} 47. Ra7 {[%emt 0:00:49]} Nxf4 {[%emt 0:00:57]} 48. Rxa6 {[%emt 0:00:38]
} d5 {[%emt 0:01:36][%cal Yd6d5,Yd5d4]} 49. Ra7 {[%emt 0:01:06]} d4 {[%emt 0:
00:44]} 50. Kb4 {[%emt 0:00:47]} Rc3 {[%emt 0:02:23]} 51. Rd7 {[%emt 0:01:47]}
Rg3 {[%emt 0:01:42]} 52. Nh7 {[%emt 0:00:17]} (52. Nf7 $142 Kg7 53. Nd6+ Kf6
54. Ne8+ Ke5 55. Re7+ Kd5 56. Rd7+ Ke4 57. Nd6+ Kd3 58. Nc4) 52... Nh5 {
[%emt 0:00:50] Weighted Error Value: White=0.36/Black=0.05 (flawless)} 0-1

[Event "44th Chess Olympiad Open 2022"]
[Site "Chennai"]
[Date "2022.07.30"]
[Round "2.4"]
[White "Maerevoet, Sim"]
[Black "Anton Guijarro, David"]
[Result "1/2-1/2"]
[WhiteElo "2409"]
[BlackElo "2667"]
[Annotator "TA"]
[PlyCount "104"]
[EventDate "2022.??.??"]
[TimeControl "60"]

{[%evp 15,104,8,8,13,14,0,0,0,0,-22,-18,-14,0,-35,-36,-14,-15,-34,-34,-31,-26,
-34,-6,-23,-2,-22,-17,-23,-26,-45,-41,-46,-49,-48,-45,-43,-60,-103,-108,-101,
-109,-112,-112,-113,-109,-109,-109,-109,-111,-108,-86,-86,-25,-25,-25,-49,-2,
-4,0,-23,-12,-15,-1,-2,-2,-26,-26,-56,-46,-46,-46,-46,-33,-33,-33,-33,-16,-30,
-14,-14,0,0,0,0,0,0,0,0,0,0,0]} 1. d4 {[%emt 0:00:04]} Nf6 {[%emt 0:00:21]} 2.
c4 {[%emt 0:00:08]} g6 {[%emt 0:00:29]} 3. Nc3 {[%emt 0:00:18]} d5 {[%emt 0:00:
00]} 4. cxd5 {[%emt 0:00:20]} Nxd5 {[%emt 0:00:06]} 5. e4 {[%emt 0:00:25]} Nxc3
{[%emt 0:00:19]} 6. bxc3 {[%emt 0:00:07]} Bg7 {[%emt 0:00:31]} 7. Qa4+ {
[%emt 0:04:27]} Nd7 {[%emt 0:01:03]} 8. Nf3 {[%emt 0:00:14]} O-O {[%emt 0:00:
00]} 9. Be2 {[%emt 0:00:23] D85: Exchange Grünfeld: Unusual White 7th moves
and lines with 7 Nf3.} Nb6 {[%emt 0:09:39]} 10. Qa3 {[%emt 0:10:34] 10.Qb4
gains popularity.} Qd6 {[%emt 0:00:00]} 11. O-O {[%emt 0:02:26]} Be6 {[%emt 0:
00:00] [#] Prevents Qb3.} 12. d5 $146 {[%emt 0:06:30] [#] Strongly threatening
Qxd6.} ({Predecessor:} 12. Re1 Qxa3 13. Bxa3 Rfe8 14. Nd2 c6 15. Nb3 Bxb3 16.
axb3 e5 17. dxe5 Bxe5 18. Rac1 {0-1 (63) Nihal,S (2610)-Chigaev,M (2644)
Douglas 2019}) 12... Bd7 {[%emt 0:24:38][%cal Ye6d7,Yd7c6,Yc6d5]} 13. Rb1 {
[%emt 0:08:05]} e6 {[%emt 0:01:41]} 14. c4 {[%emt 0:02:12] Hoping for c5.} Qxa3
{[%emt 0:00:43]} 15. Bxa3 {[%emt 0:00:06]} Rfe8 {[%emt 0:00:14] ...exd5 is the
strong threat.} 16. d6 {[%emt 0:20:43]} cxd6 {[%emt 0:25:54]} 17. Bxd6 {
[%emt 0:00:00]} Bc6 {[%emt 0:00:04]} 18. e5 {[%emt 0:00:00]} Nd7 {[%emt 0:00:
00][%cal Yb6d7,Yd7c5,Yc5e4,Ye4c3]} 19. c5 {[%emt 0:00:21]} b6 {[%emt 0:07:46]}
20. cxb6 {[%emt 0:07:50]} axb6 {[%emt 0:02:21]} 21. a3 {[%emt 0:13:24]} Rec8 {
[%emt 0:02:08]} 22. Rbc1 {[%emt 0:01:45]} Bd5 {[%emt 0:00:00]} 23. Bb5 {
[%emt 0:04:06]} Nc5 {[%emt 0:01:29]} 24. Rc3 {[%emt 0:00:58]} Ne4 {[%emt 0:01:
17]} 25. Rxc8+ {[%emt 0:01:24]} Rxc8 {[%emt 0:00:04]} 26. Bb4 {[%emt 0:02:44] 
[#]} Nc3 $1 {[%emt 0:04:55]} 27. Ba6 {[%emt 0:01:05]} Ra8 {[%emt 0:04:00]} 28.
Rc1 {[%emt 0:02:01]} Na2 {[%emt 0:05:25]} ({Weaker is} 28... Rxa6 29. Rxc3 Ra8
30. Bd6 $15) 29. Rc8+ {[%emt 0:01:38]} Rxc8 {[%emt 0:00:00]} 30. Bxc8 {[%emt 0:
00:04]} Nxb4 {[%emt 0:00:55]} 31. axb4 $17 {[%emt 0:00:00] Endgame KBB-KBN} Bf8
{[%emt 0:01:32]} 32. b5 {[%emt 0:00:19]} Kg7 {[%emt 0:03:25]} 33. Bd7 {[%emt 0:
01:04]} f6 {[%emt 0:00:47]} (33... Bxf3 $17 34. gxf3 Bb4) 34. Bc6 $11 {[%emt 0:
01:09]} Ba2 {[%emt 0:00:07]} 35. h4 {[%emt 0:02:45]} fxe5 {[%emt 0:01:29]} (
35... f5 $15 {deserves consideration.}) 36. Nxe5 {[%emt 0:00:12]} Bd6 {[%emt 0:
00:08]} 37. Nf3 {[%emt 0:01:27]} (37. Nd7 $5 {[%cal Rd7b6]}) 37... h6 {[%emt 0:
00:46]} 38. Nd2 {[%emt 0:00:50]} Be7 {[%emt 0:00:15]} 39. g3 {[%emt 0:00:37]}
Kf6 {[%emt 0:00:28]} 40. Ne4+ {[%emt 0:00:00]} Ke5 {[%emt 0:01:05]} 41. f3 {
[%emt 0:33:14]} Kd4 {[%emt 0:05:52]} 42. Kg2 {[%emt 0:00:00]} Bc4 {[%emt 0:04:
38]} 43. Be8 {[%emt 0:00:00]} Bd3 {[%emt 0:10:54]} 44. Nf2 {[%emt 0:00:00]} Be2
{[%emt 0:00:06]} 45. Ng4 {[%emt 0:00:00]} h5 {[%emt 0:01:23]} 46. Nf2 {[%emt 0:
00:00]} Ke3 {[%emt 0:03:08]} 47. Bc6 {[%emt 0:00:00] The position is equal.} g5
{[%emt 0:04:44]} 48. g4 $1 {[%emt 0:00:00]} hxg4 {[%emt 0:00:33]} 49. Nxg4+ {
[%emt 0:00:00]} Kf4 {[%emt 0:00:00]} 50. h5 {[%emt 0:00:00]} Bd3 {[%emt 0:01:
07]} 51. Nf2 {[%emt 0:00:00]} Bf5 {[%emt 0:00:22]} 52. Nh3+ {[%emt 0:00:00]}
Bxh3+ {[%emt 0:01:00] Weighted Error Value: White=0.08 (flawless) /Black=0.08 
(flawless)} 1/2-1/2